Cogmind - Beta 17 *** ADVENTURER MODE // 2026.07.12 @ 18:06:32 // Winter2019/RPGLIKE Player: Lava Result: Destroyed by DI-SVX(g) with Salvaging Laser Performance ------------- Evolutions (0) 0 Regions Visited (3) 600 Robots Destroyed (29) 145 Value Destroyed (551) 551 Prototype IDs (3) 60 Alien Tech Used (0) 0 Bonus (6400) 6400 TOTAL SCORE: 7756 Bonus ------- Prayed to X0-1V1 5000 Major X0-1V1 Interference 600 Registered with UFD 300 Met Optimus in HQ 500 Cogmind --------- Core Integrity 0/600 Matter 264/300 Energy 160/160 System Corruption 2% Temperature Hot (248) Movement Walking (170) Ox1 Location -9/Scraptown Parts ------- > --- POWER (2) -------- Light Fission Core > --- PROPULSION (2) --- Potential Leg > --- UTILITY (4) ------ (None) > --- WEAPON (3) ------- Siege Cannon Replica > --- INVENTORY (3) ---- Protomatter-96 Protomatter-58 Maul Peak State ------------ > --- POWER ------------ Light Ion Engine Light Fission Core > --- PROPULSION ------- Makeshift Leg Potential Leg > --- UTILITY ---------- Signal Interpreter Light Armor Plating Makeshift Light Armor Plating X0-1V1's Piety Tracker > --- WEAPON ----------- Siege Cannon Replica > --- INVENTORY -------- Protomatter Maul [Rating: 51] Favorites ----------- Power Light Ion Engine Engine Light Ion Engine Power Core Light Fission Core Propulsion Improved Treads Treads Improved Treads Leg Makeshift Leg Utility Light Armor Plating Device X0-1V1's Piety Tracker Processor Signal Interpreter Protection Light Armor Plating Weapon Autogun Ballistic Gun Autogun Ballistic Cannon Siege Cannon Replica Impact Weapon Hammer Build | -11 -10 -10 -9 ------- Run | Yrd Mat Sub Scr Slots Evolved 7 | 3 3 . 1 Power . | . . . . Propulsion 2 | 1 . . 1 Utility 4 | 1 3 . . Weapon 1 | 1 . . . Parts Attached 23 | 6 10 2 5 Power 2 | 1 . . 1 Engine 1 | 1 . . . Core 1 | . . . 1 Reactor . | . . . . Propulsion 6 | 2 2 1 1 Treads 4 | 2 2 . . Leg 2 | . . 1 1 Wheel . | . . . . Hover . | . . . . Flight . | . . . . Utility 6 | . 5 1 . Device 1 | . 1 . . Storage . | . . . . Processor 2 | . 2 . . Hackware . | . . . . Protection 3 | . 2 1 . Artifact . | . . . . Weapon 9 | 3 3 . 3 Energy Gun . | . . . . Energy Cannon . | . . . . Ballistic Gun 6 | 3 2 . 1 Ballistic Cannon 1 | . . . 1 Launcher . | . . . . Special Weapon . | . . . . Impact Weapon 2 | . 1 . 1 Slashing Weapon . | . . . . Piercing Weapon . | . . . . Special Melee Weapon . | . . . . Unidentified Prototypes 1 | . 1 . . Parts Lost . | . . . . Power . | . . . . Propulsion . | . . . . Utility . | . . . . Weapon . | . . . . Highest Loss Streak . | . . . . To Critical Strikes . | . . . . Average Backups 1 | 1 1 2 1 Power . | . . . . Propulsion . | . . . . Utility . | . . . . Weapon 1 | . 1 2 1 Tool/Special . | . . . . Unused Backups 1 | . . . 1 Power . | . . . . Propulsion . | . . . . Utility . | . . . . Weapon 1 | . . . 1 Tool/Special . | . . . . Average Slot Usage (%) 83 | . 98 79 67 Engine 11 | . 14 10 9 Core 2 | . . . 7 Treads 12 | . 28 4 . Leg 5 | . . 7 10 Device 5 | . . 10 9 Processor 11 | . 13 10 9 Protection 16 | . 13 16 19 Ballistic Gun 15 | . 26 17 . Impact Weapon 1 | . 1 2 . Peak Build Rating 51 | 5 24 28 51 Average Rating 20 | 4 9 26 29 On Entrance 14 | . 5 24 28 Avg Prop Armor Cover (%) 10 | . . 10 . Naked Turns . | . . . . Heaviest Build 48 | 6 13 17 48 Greatest Support 50 | 40 46 46 50 Greatest Overweight (x) 2 | . . . 2 Average Overweight (x) . | . . . . Largest Inventory Capacity 3 | 3 3 3 3 Average Capacity 2 | 2 3 3 3 Most Carried 3 | 3 3 3 3 Average Carried 2 | . 2 3 2 Final Capacity 3 | 3 3 3 3 Final Carried 3 | 1 3 3 3 Class Distribution -------------------- 96% | Mutant Dominant Class ---------------- Mutant | -10/Materials Mutant | -10/Subcaves Mutant | -9/Scraptown Resources | -11 -10 -10 -9 ----------- Run | Yrd Mat Sub Scr Matter Collected 989 | 264 406 99 220 Remotely . | . . . . Salvage Created 595 | . 551 14 30 Parts 56 | . 49 5 2 Haulers Intercepted 1 | . 1 . . Recyclers Shooed . | . . . . Parts Field Recycled . | . . . . Retrieved Matter . | . . . . Parts Self-Destructed 13 | . . 13 . Prevented . | . . . . Parts Restored . | . . . . Kills | -11 -10 -10 -9 ------- Run | Yrd Mat Sub Scr Combat Hostiles Destroyed 21 | . 17 3 1 Guns 20 | . 17 3 . Cannons 1 | . . . 1 Classes Destroyed 8 | . 6 . 2 Builder 2 | . 2 . . Hauler 1 | . 1 . . Recycler 1 | . 1 . . Turret 1 | . . . 1 Watcher 3 | . 3 . . Swarmer 12 | . 9 3 . Grunt 8 | . 8 . . Guru 1 | . . . 1 Best Kill Streak 3 | . 3 3 1 Combat Bots Only 3 | . 3 3 1 Max Kills in Single Turn 2 | . 2 1 1 Gunslinging 1 | . 1 . . Exploded . | . . . . Melee . | . . . . Uniques/NPCs Destroyed . | . . . . Combat | -11 -10 -10 -9 -------- Run | Yrd Mat Sub Scr Hostile Shots Fired 113 | . 43 8 62 Missed 31 | . 14 2 15 Hits 82 | . 29 6 47 Projectile 82 | . 29 6 47 Damage Taken 1062 | . 208 36 818 Core 851 | . 149 17 685 Absorbed by Shields . | . . . . Redirected to Core 500 | . 131 17 352 Ignored by Resistances 234 | . 69 12 153 Core Remaining (%) 100 | 100 . . . Volleys Fired 60 | 1 47 4 8 Largest 2 | 2 2 2 1 Hottest 90 | 40 46 46 90 Shots Fired 113 | 2 94 9 8 Gun 106 | 2 94 9 1 Cannon 7 | . . . 7 Launcher . | . . . . Special . | . . . . Kinetic 113 | 2 94 9 8 Thermal . | . . . . Explosive . | . . . . Electromagnetic . | . . . . Robot Hit Streak 18 | . 12 17 18 Robot Miss Streak 2 | . 2 . 1 Penetration Max 1 | . . . 1 Secondary Targets 4 | . 3 1 . Max Gunslinging Chain 1 | . 1 1 . Shots Hit Robots 78 | . 67 7 4 Core Hits 34 | . 30 3 1 Critical Kills 1 | . . . 1 Critical Parts Destroyed 1 | . 1 . . Critical Strikes 2 | . 1 . 1 Destroy 2 | . 1 . 1 Melee Attacks 4 | . 1 2 1 Impact 4 | . 1 2 1 Slashing . | . . . . Piercing . | . . . . Sneak Attacks . | . . . . Combat Hostiles . | . . . . Follow-up Attacks . | . . . . Damage Inflicted 1396 | . 936 105 355 Guns 1065 | . 936 105 24 Cannons 331 | . . . 331 Explosions . | . . . . Melee . | . . . . Ramming . | . . . . Kinetic 1396 | . 936 105 355 Thermal . | . . . . Explosive . | . . . . Electromagnetic . | . . . . Impact . | . . . . Slashing . | . . . . Piercing . | . . . . Highest Corruption 2 | . . 2 2 Average Corruption 2 | . . 2 2 Corruption Purged . | . . . . Corruption Blocked . | . . . . Effects 29 | . . 8 21 Message Errors 8 | . . 3 5 Matter Fused 10 | . . 2 8 Heat Flow Errors 3 | . . . 3 Energy Discharges 2 | . . . 2 Parts Fused 2 | . . 1 1 Data Loss (minor) 1 | . . . 1 Data Loss (major) 2 | . . 1 1 Misfires 1 | . . 1 . Overload Shots . | . . . . Overflow Damage 101 | . . . 101 Projectiles 101 | . . . 101 Explosions . | . . . . Melee . | . . . . Knockbacks 2 | . . . 2 Impact . | . . . . Kinetic 2 | . . . 2 Secondary . | . . . . Self-Inflicted Damage . | . . . . Shots . | . . . . Rammed 1 | . 1 . . Targets Rammed 2 | . 1 . 1 Kicked 1 | . . . 1 Crushed . | . . . . Highest Temperature 502 | . 62 . 502 Average Temperature 88 | . 13 . 127 Received Heat Transfer 432 | . 78 . 354 Effects 5 | . . . 5 Shutdowns 3 | . . . 3 Energy Bleed 1 | . . . 1 Interference 1 | . . . 1 Siege Activations . | . . . . Martial Activations . | . . . . Shielding Activations . | . . . . Robots Disrupted . | . . . . Combat Hostiles . | . . . . Robots Corrupted . | . . . . Combat Hostiles . | . . . . Parts Fried 2 | . 2 . . Impact Corruptions . | . . . . Robots Melted . | . . . . Combat Hostiles . | . . . . Parts Melted . | . . . . Heat Transferred . | . . . . Parts Sabotaged . | . . . . Parts Stolen . | . . . . Parts Stripped . | . . . . Power Chain Reactions . | . . . . Alert | -11 -10 -10 -9 ------- Run | Yrd Mat Sub Scr Maximum Alert Level . | . . . . Low Security (%) 100 | 100 100 . . Level 1 . | . . . . Level 2 . | . . . . Level 3 . | . . . . Level 4 . | . . . . Level 5 . | . . . . High Security . | . . . . Max Security . | . . . . Peak Influence 130 | . 130 . . Initial . | . . . . Average 28 | . 30 . . Influence Increases 671 | . 611 60 . Destroy 0b10 Robot/C 400 | . 340 60 . Destroy 0b10 Robot/NC 35 | . 35 . . Destroy Leader 78 | . 78 . . Trap Triggered on 0b10 30 | . 30 . . Successful Hack 29 | . 29 . . Disable Machine 9 | . 9 . . Lose Combat Pursuer 90 | . 90 . . Influence Decreases 671 | . 561 110 . Entered New Map 28 | . . 28 . Time Decay 643 | . 561 82 . Squads Dispatched 3 | . 3 . . Investigation 3 | . 3 . . Extermination . | . . . . Reinforcement . | . . . . Assault . | . . . . Garrison . | . . . . Intercept . | . . . . Searches Triggered . | . . . . Construction Impeded . | . . . . Haulers Reinforced . | . . . . Active Scanning Responses . | . . . . Cargo Convoy Interrupts . | . . . . Stealth | -11 -10 -10 -9 --------- Run | Yrd Mat Sub Scr Distress Signals . | . . . . Communications Jammed . | . . . . Distress Signals . | . . . . Times Spotted 52 | . 28 3 21 Peak Tracking Total 9 | . 3 3 9 Tactical Retreats 2 | . 2 . . Traps | -11 -10 -10 -9 ------- Run | Yrd Mat Sub Scr Traps Triggered 2 | . 2 . . Indirectly . | . . . . Trap Hack Attempts . | . . . . Triggered . | . . . . Disarmed 3 | . 3 . . Reprogrammed 6 | . 6 . . Reused 3 | . 3 . . Traps Extracted . | . . . . Installed . | . . . . Triggered 3 | . 3 . . Machines | -11 -10 -10 -9 ---------- Run | Yrd Mat Sub Scr Machines Disabled 3 | . 1 . 2 Max in Single Turn 1 | . 1 . 1 Machines Repaired . | . . . . Machines Dismantled . | . . . . Machines Sabotaged . | . . . . Overloaded Fab Kills . | . . . . Hacking | -11 -10 -10 -9 --------- Run | Yrd Mat Sub Scr Machines Accessed 12 | . 8 . 4 Terminals 8 | . 8 . . Fabricators . | . . . . Repair Stations . | . . . . Recycling Units . | . . . . Scanalyzers . | . . . . Garrison Access . | . . . . Total Hacks 52 | . 24 . 28 Successful 43 | . 15 . 28 Failed 9 | . 9 . . Catastrophic 2 | . 2 . . Database Lockouts . | . . . . Manual 24 | . 24 . . Terminals 24 | . 24 . . Fabricators . | . . . . Repair Stations . | . . . . Recycling Units . | . . . . Scanalyzers . | . . . . Garrison Access . | . . . . Terminal Hacks 37 | . 9 . 28 Record 25 | . . . 25 Robot Analysis 3 | . . . 3 Branch Access Points 1 | . 1 . . Terminal Index 1 | . 1 . . Alert Level 1 | . 1 . . Locate Traps 1 | . 1 . . Disarm Traps 2 | . 2 . . Reprogram Traps 2 | . 2 . . Zone Layout 1 | . 1 . . Fabricator Hacks . | . . . . Repair Station Hacks . | . . . . Recycling Unit Hacks . | . . . . Scanalyzer . | . . . . Garrison Access Hacks . | . . . . Unauthorized Hacks 6 | . 6 . . Terminals 6 | . 6 . . Botnet 6 | . 6 . . Fabricators . | . . . . Repair Stations . | . . . . Recycling Units . | . . . . Scanalyzers . | . . . . Garrison Access . | . . . . Data Cores Recovered . | . . . . Used . | . . . . Hacking Detections 6 | . 6 . . Full Trace Events 1 | . 1 . . Feedback Events . | . . . . Feedback Blocked . | . . . . Robot Schematics Acquired . | . . . . Robots Built . | . . . . Authchips . | . . . . Time . | . . . . Total Robot Build Rating . | . . . . Part Schematics Acquired . | . . . . Parts Built . | . . . . Authchips . | . . . . Time . | . . . . Total Part Build Rating . | . . . . Part Studies Acquired . | . . . . Parts Repaired . | . . . . Time . | . . . . Parts Recycled . | . . . . Recycled Matter . | . . . . Retrieved Matter . | . . . . Retrieved Components . | . . . . Parts Scanalyzed . | . . . . Part Schematics Acquired . | . . . . Parts Damaged . | . . . . Bothacking | -11 -10 -10 -9 ------------ Run | Yrd Mat Sub Scr Used RIF Installer . | . . . . Robots Hacked . | . . . . Non-combat . | . . . . Combat . | . . . . Robot Hacks Applied . | . . . . Relay Couplers Released . | . . . . Fabnet Peak Effective % . | . . . . Robots Rewired . | . . . . Allies Hacked . | . . . . Hacks Repelled . | . . . . Allies | -11 -10 -10 -9 -------- Run | Yrd Mat Sub Scr Total Allies . | . . . . Largest Group . | . . . . Highest-Rated Group . | . . . . Highest-Rated Ally . | . . . . Total Orders . | . . . . Ally Attacks . | . . . . Total Damage . | . . . . Kills . | . . . . Allies Corrupted . | . . . . Allies Melted 5 | . . . 5 X0-1V1 Amusement Gains 102 | . 5 . 97 Good Acts 4 | . . 4 . Bad Acts 5 | . . 4 1 Intel | -11 -10 -10 -9 ------- Run | Yrd Mat Sub Scr Active Infowar (turns) . | . . . . Robot Analysis Total 3 | . . . 3 Derelict Logs Recovered 2 | . . 2 . Drone Launches . | . . . . Drone Recoveries . | . . . . Exploration | -11 -10 -10 -9 ------------- Run | Yrd Mat Sub Scr Turns Passed 4365 | 88 1729 1076 1472 Spaces Moved 2679 | 55 915 733 976 Core 12 | 12 . . . Treads 1087 | 43 915 129 . Legs 1580 | . . 604 976 Wheels . | . . . . Hover . | . . . . Flight . | . . . . Fastest Speed 50 | 50 160 140 115 Average Speed 148 | 136 160 143 140 Slowest Speed 280 | 160 160 160 280 Overloaded Moves . | . . . . Propulsion Burnouts . | . . . . Robots Hopped . | . . . . Potential Cave-ins . | . . . . Cave-ins Triggered . | . . . . Exploration Rate (%) 50 | 3 99 40 59 Regions Visited 3 Branch Regions 2 Pre-discovered Areas . | . . . . Known Exits Taken 2 | . 1 1 . Unknown Exits Taken 1 | 1 . . . Scrap Searched 8 | . . 2 6 Spaces Dug . | . . . . Terrain Destroyed 14 | . . . 14 Melee . | . . . . Projectile 14 | . . . 14 AOE . | . . . . Terrain Rammed . | . . . . Walls Destroyed . | . . . . Machines Disabled . | . . . . Actions | -11 -10 -10 -9 --------- Run | Yrd Mat Sub Scr Total 2978 | 65 1099 745 1069 Wait 152 | . 99 . 53 Move 2676 | 54 914 732 976 Hop . | . . . . Pick Up 21 | 4 9 . 8 Fast Attach 8 | 2 2 1 3 Attach 9 | 3 2 . 4 Detach . | . . . . Swap 11 | 1 7 3 . Drop 15 | . 7 . 8 Fire 60 | 1 47 4 8 Melee 4 | . 1 2 1 Ram . | . . . . Kick 1 | . . . 1 Crush 1 | . 1 . . Escape Stasis . | . . . . Rewire . | . . . . Trap . | . . . . Miscellaneous 20 | . 10 3 7 Route ------- -11/Scrapyard -10/Materials (discovered 6 exits: [*Mat x3] / *Min x2 / *Sub) -10/Subcaves (discovered 4 exits: *Mat x2 / Rec / *Scr) -9/Scraptown (discovered 2 exits: *Fac x2) History --------- Turn | Location | Event 6 | -11/Scrapyard | Upgraded with Propulsion slot (x1) 6 | -11/Scrapyard | Upgraded with Utility slot (x1) 6 | -11/Scrapyard | Upgraded with Weapon slot (x1) 20 | -11/Scrapyard | Discovered new exit (range 15) 89 | -11/Scrapyard | Entered Materials 89 | -10/Materials | Discovered new exit (range 14) 227 | -10/Materials | Identified exit to Mines 307 | -10/Materials | Build established: Mutant 537 | -10/Materials | Discovered new exit (range 13) 861 | -10/Materials | Discovered new exit (range 5) 1160 | -10/Materials | Discovered new exit (range 14) 1289 | -10/Materials | Discovered new exit (range 5) 1415 | -10/Materials | Reached level 2 1807 | -10/Materials | Identified exit to Subcaves 1814 | -10/Materials | Prayed at D.C.S.S. Altar Unit 1814 | -10/Materials | Reached level 3 1814 | -10/Materials | Reached level 4 1814 | -10/Materials | Upgraded with Utility slot (x3) 1818 | -10/Materials | Entered Subcaves 1819 | -10/Subcaves | Approached by a straggling Scientist 1820 | -10/Subcaves | Learned Materials emergency access door positions 1998 | -10/Subcaves | Identified exit to Scraptown 2003 | -10/Subcaves | Scientist uncovered a shortcut to Scraptown 2019 | -10/Subcaves | Shifting Twisted Machinery released Sub. Monowheel 2038 | -10/Subcaves | Shifting Twisted Machinery released Flamer 2047 | -10/Subcaves | Discovered new exit (range 13) 2075 | -10/Subcaves | Identified exit to Materials 2092 | -10/Subcaves | Learned Materials trap positions 2099 | -10/Subcaves | Identified exit to Recycling 2099 | -10/Subcaves | X0-1V1 revealed exit location to -9/Recycling 2103 | -10/Subcaves | X0-1V1 mutated your Propulsion slot to Power slot 2165 | -10/Subcaves | Shifting Twisted Machinery released Mak. Light Armor Plating 2194 | -10/Subcaves | X0-1V1 revealed exit location to -8/Materials 2216 | -10/Subcaves | Shifting Twisted Machinery released Sub. Machine Gun 2270 | -10/Subcaves | X0-1V1 sent hostile S-10 Pest (x3) 2276 | -10/Subcaves | Reached level 5 2289 | -10/Subcaves | Shifting Twisted Machinery released Battle Cannon 2313 | -10/Subcaves | Shifting Twisted Machinery released Flamer 2716 | -10/Subcaves | X0-1V1 activates XOMVISION 2824 | -10/Subcaves | X0-1V1 mutated your Utility slot to Weapon slot 2894 | -10/Subcaves | Entered Scraptown 3086 | -9/Scraptown | Visited The Evicted 3120 | -9/Scraptown | Visited Science Testing Area 3152 | -9/Scraptown | Visited Shadow of the Wyrm 3167 | -9/Scraptown | Visited Bundlers 3289 | -9/Scraptown | Discovered new exit (range 13) 3461 | -9/Scraptown | Visited UFD Registry 3461 | -9/Scraptown | Registered with UFD as "Shortkit" 3496 | -9/Scraptown | Visited Derelict Rescue Squad 3530 | -9/Scraptown | Visited Curators Association 3550 | -9/Scraptown | Visited Botcube Research 3572 | -9/Scraptown | Visited Abandonware Association 3590 | -9/Scraptown | Visited Analyses Database 3624 | -9/Scraptown | Visited Scrapoid Research Area 3685 | -9/Scraptown | Visited Junk Cannon Lab 3718 | -9/Scraptown | Visited Junk Repository 3866 | -9/Scraptown | Met Optimus 3866 | -9/Scraptown | Accepted into 0bPrime 4102 | -9/Scraptown | Civil war broke out across Scraptown 4219 | -9/Scraptown | Found Siege Cannon Replica 4223 | -9/Scraptown | Lost 4 allies 4253 | -9/Scraptown | Upgraded with Propulsion slot (x1) 4253 | -9/Scraptown | Found Potential Leg 4289 | -9/Scraptown | Lost 4 allies 4319 | -9/Scraptown | Core integrity fell below 50% 4323 | -9/Scraptown | Identified exit to Factory 4356 | -9/Scraptown | Core integrity fell below 20% 4366 | -9/Scraptown | Destroyed by DI-SVX(g) with Salvaging Laser Last Messages --------------- 04356_ B5-TLB(j) heat damages Mak. Salvage Targeting Computer, Lgt. Deuterium Engine, Scrap Suit. 04357_ Acquired 15 matter. 04361_ Penetrated by Bolt. 04362_ X0-1V1: "The ol' switcheroo!" VE-P0U(x) form resolidifies at new position. Form resolidifies at new position. 04363_ 41-Q3C(E) destroyed. 04363_ Siege Cannon Replica recoils violently, damaging core (-49). 04363_ Violent recoil rips off Lgt. Ion Engine. 04363_ Violent recoil rips off Mak. Leg. 04363_ Siege Slug penetrates VE-P0U(x). 04363_ Destroyed Lgt. Ion Engine. 04363_ VE-P0U(x) knocked back. 04363_ Siege Slug penetrates VE-P0U(x). 04363_ Destroyed EM Pulse Gun. 04363_ E0-VVT(p) destroyed. 04365_ Siege Cannon Replica recoils violently, damaging core (-20). 04365_ Siege Slug penetrates Wall. 04366_ X0-1V1 chortles! Map ----- +----------------------------------------------------+ | | | | | | | | | | | | | | | | | ?????????????????????????????????????????????????? | | ?????????????????????????????????????????????????? | | ?????????????????????????????????????????????????? | | ?????????????????????????????????????????????????? | | ?????????????????????????????????????????????????? | | ?????????????????????????????????????????????????? | | ?????????????????????????????????????????????????? | | ?????????????????????????????????????????????????? | | ?????????????????????????????????????????????????? | | ?????????????????????????????????????????????????? | | ?????????????????????????????????????????????????? | | ?????????????????????????????????????????????????? | | ?????????????????????????????????????????????????? | | ?????????????????????##????########??????????????? | | ????????????????????##"""###"#[!;;#?????